Workbook

Sheet Design Sheet
A5: DESIGN OF FLUST-EXTENDED END PLATE CONNECTION
A6: PROJECT : | B6: KING SAUD UNIVERSITY
A7: DATE: | B7: 2010-07-23 | D7: Prep. By: | E7: S.S. | F7: Check. : | G7: MB | H7: Cert. : | I7: MB
A8: BUILDING: | B8: B#24- GRAND FOYER
A9: Members | C9: Joint | D9: CASE NO | E9: CASE OF LOADING DESCRIPTION
A10: 1001 | C10: 500 | D10: 8 | E10: D + L
A11: DESIGN NOTES AND ASSUMPTIONS :
A12: -All Dimensions in mm ,Forces in ton and stresses t/cm2.
A13: -This procedure is deigned for bearing type connections only.
A14: -The primary assumption in this approach is that the end plate must substantially yield to produce prying forces
A15: in the bolts.Conversely,if the plate is strong enough,no prying action occurs and the bolts are loaded in direct tension
A16: This simplified assumption allows the designer to directly optimize either the bolt diameter or end-plate thickness
A17: as desired.
A18: -The threshold when prying action begins to take place in the bolts at 90% of the full strength of the plate or 0.9Mpl
A19: If the applied load is less than this value, the end plate behaves as a thick plate and prying action can be neglected
A20: in the bolts.Once the applied moment crosses the threshold of 0.9Mpl,the plate can be approximated as a thin plate
A21: and maximum prying is incorporated in the bolt analysis.
A22: -Intermediate plate behaviour is a transition from Thick to Thin behaviour and considered as a thin behaviour
A23: during the analysis.
A24: -The factored axial load will be converted into an equivalent moment that will be added to the factored
A25: connection moment for axial tension.
A26: -The width of end plate ,Which is effective in resisting the applied beam moment shall not be taken greater than
A27: than the beam flange width plus 1 inch in the calculations.
A28: -The beam flange to end plate weld can be designed for the required moment strength but not less than 60% of the
A29: specified minimum yield strength of the connected beam flange.
A30: -When the full design strength is not required, the beam web to end plate welds should be designed to develop
A31: 60% of the minimum specified yield strength of the beam web.
A32: -Stitch bolts are sometimes used between the tension and compression flange end plate bolts especially in deep
A33: connections. The purpose of these bolts is to reduce plate separation caused by welding distortions.Because stitch
A34: bolts are located near center of gravity of the member,Contribution to connection strength is small and is neglected
A35: -The purpose is to design connections Type(FR) or Type"1" which is fully restrained moment connections
A36: -Type(1) or "FR" connections are traditionally required to carry and end moment greater than or equal to 90%
A37: of the full fixity end moment of the beam and not rotate more than 10% of the simple span rotation.
A38: -This procedure is based on Yield line technique to determine end plate thickness and to predict the tension forces
A39: Considering the prying actions.
A40: -Yield line are the continous formation of the plastic hinges along a straight or curved lines.
A41: -Thick plate behaviour is taken place when plastic hinges is not formed in the split-tee flange and the prying force
A42: value is equal to "zero".
A43: -Thin plate behaviour is taken place when plastic hinges is formed in the split-tee flange and the prying force
A44: value is not equal to "zero".
A45: -All loads and internal forces comply with LRFD method (internal forces in ASD Could be muliplied by 1.5).
A46: -Flush End plate connections are typically used for light loads or near moment inflection point.
A47: -All Shear Forces assumed to be resisted by compression bolts
A48: -Bolts in tension may be tightened to 70% of the bolt tensile strength or could be snug tightened (for Bolts A325 Only)
A49: -This spreadsheet is designed to check the connection strength for the following limit states :
B50: -Connection Strength Based on End plate Yielding.
B51: -Connection Strength Based on bolt rupture without prying action.
B52: -Connection Strength Based on bolt fracture w/prying action.
A54: -Effect of axial forces will be neglected incase the axial force is compression.
M56: Flush.End.Plate | P56: A325N | R56: Flush.End.Plate | S56: Extended.End.Plate | V56: Unstiffened | W56: Unstiffened
A57: NOTATIONS | P57: A325X | R57: F.2 | S57: E.4 | W57: Stiffened Between the bolt tension rows
A58: ɣr-Load Factor to limit connection | E58: h0-distance from the compression side of the beam | P58: A490N | R58: F.4 | S58: E.6 | W58: Stiffened inside the bolt tension rows
A59: rotation at ultimate moment | E59: to the outer bolt centerline in extended end plate connection | M59: Unstiffened | P59: A490X | S59: E.8
A60: to 10% of simple span rotation | E60: h1-distance from the compression side of the beam
A61: db-nominal bolt diameter | E61: to the farthest inner load-carrying bolt line. | P61: 2 | R61: Unstiffened | T61: Unstiffened | V61: Unstiffened
A62: tp-End Plate Thickness | E62: h2-distance from the compression side of the beam | P62: 4 | R62: Stiffened | V62: Stiffened
A63: bp-End Plate Width | E63: to the second farthest inner load-carrying bolt line.
A64: h-Total Beam depth | E64: h3-distance from the compression side of the beam
A65: g-Bolt Gage | E65: to the third farthest inner load-carrying bolt line. | L65: 2-B flush unstiffened | O65: =(C103/2*(H105*(1/C107 + 1/B117)) + 2/H103 * (H105*(C107+B117)))/10 -> 379.3698085 | P65: Y=bp/2 [ h1*(1/pf + 1/s) ] + 2/g * [ h1 (pf + s) ]
A66: Y-Yield line mechanism parameter | E66: h-Total depth of the beam | L66: 4-B flush unstiffened | O66: =(C103/2*(H105*(1/C107)+H107*(1/B117))+2/H103*(H105*(C107+0.75*C109)+H107*(B117+0.25*C109))+H103/2)/10 -> 492.488992 | P66: Y= bp/2 [ h1(1/pf) + h2(1/s) ] + 2/g * [h1(pf+0.75Pb)+h2(s+0.25Pb)]+g/2
A67: Fyp-End plate material yield stress | E67: Mpl-Connection strength for limit state of end plate yielding | L67: 4-B flush stiffened between | O67: =(C103/2*(H105*(1/C107+1/H109)+H107*(1/B117+1/C110))+2/H103*(H105*(C107+H109)+H107*(B117+C110)))/10 -> 848.5835955 | P67: Y= bp/2 [ h1(1/pf + 1/ps,o) + h2(1/s + 1 / ps,i) ] + 2/g * [h1(pf + ps,o) + h2 ( s + Ps,i ) ]
A68: s(1/2√bp*g)-Distance from the innermost | E68: Pf,i-distance from the bolt centerline adjacent to beam tension | L68: 4-B flush stiffened inside | O68: =(C103/2*(H105/C107+H107/B117)+2/H103*(H105*(C107+0.75*C109)+H107*(B117+0.25*C109))+H103/2)/10 -> 492.488992 | P68: Y= bp/2 [ h1(1/pf) + h2(1/s) ] + 2/g * [h1(pf+0.75Pb)+h2(s+0.25Pb)]+g/2
A69: bolt centerline to the innermost | E69: flange to the near face of the beam tension flange | L69: 4-B EXTENDED unstiffened | O69: =(C103/2*(H105*(1/C107+1/B117)+H104*(1/C108)-0.5)+2/H103*(H105*(C107+B117)))/10 -> 481.8688242 | P69: Y=bp/2 [ h1*(1/pf,i + 1/s) + h0(1/pf,o) -0.5 ] + 2/g * [ h1 (pf,i + s) ]
A70: yield line | E70: Pf,O-distance from the outer bolt centerline to the outer face | L70: 4-B EXTENDED-STIFFENED S < de | O70: =(C103/2*(H105*(1/C107+1/B117)+H104*(1/B117+1/C108))+2/H103*(H105*(C107+B117)+H104*(B117+C108)))/10 -> 818.8031741 | P70: Y=bp/2 [h1 ( 1 / pf,I + 1 /s ) + h0 ( 1/s + 1 /pf,o )] + 2/g [h1 ( pf,I + s ) + h0 (s + pf,o) ]
A71: Pb-distance from bolt CL to bolt CL | E71: of the beam tension flange | L71: 4-B EXTENDED-STIFFENED S >= de | O71: =(C103/2*(H105*(1/C107+1/B117)+H104*(1/C108+1/(2*B117)))+2/H103*(H105*(C107+B117)+H104*(B119+C108)))/10 -> 766.2003284 | P71: Y=bp/2 [h1 ( 1 / pf,I + 1 /s ) + h0 ( 1/2s + 1 /pf,o )] + 2/g [h1 ( pf,I + s ) + h0 (de + pf,o) ]
A72: Ps,i-distance from the first interior bolt | E72: Ps,o-distance from the outer bolt centerline to the outer | L72: 1/2 extended unstiffened | O72: =(C103/2*(H105*(1/C107)+H107*(1/B117)+H104*(1/C108)-0.5)+2/H103*(H105*(C107+0.75*C109)+H107*(B117+0.25*C109))+H103/2)/10 -> 594.9880078 | P72: Y= bp/2 [ h1(1/pf,i) + h2(1/s) + h0 ( 1 / pf,0) -0.5 ] + 2/g * [h1(pf,i+0.75Pb)+h2(s+0.25Pb)]+g/2
A73: centerline to the inner face of the the | E73: face of the stiffener in four-bolt flush connection with | L73: 1/3 extended unstiffened | O73: =(C103/2*(H105/C107+H108/B117+H104/C108-0.5)+2/H103*(H105*(C107+1.5*C109)+H108*(B117+0.5*C109))+H103/2)/10 -> 651.6978958 | P73: Y= bp/2 [ h1(1/pf,i) + h3(1/s) + h0 ( 1 / pf,0) -0.5 ] + 2/g * [h1(pf,i+1.5Pb)+h3(s+0.5Pb)]+g/2
A74: stiffener in four-bolt flush connection | E74: stiffener between bolt rows | L74: 1/3 extended stiffened s <de | O74: =(C103/2*(H105/C107+H108/B117+H104*(1/B117+1/C108))+2/H103*(H105*(C107+1.5*C109)+H108*(B117+0.5*C109)+H104*(B117+C108))+H103/2)/10 -> 988.6322457 | P74: Y= bp/2 [ h1(1/pf,i) + h3(1/s) + h0 ( 1 / pf,0) ] + 2/g * [h1(pf,i+1.5Pb)+h3(s+0.5Pb)+h0(s+Pf,o)]+g/2
A75: with stiffener inside bolt rows | E75: Pext-End-plate extension beyond the exterior face of | L75: 1/3 extended stiffened s >= de | O75: =(C103/2*(H105/C107+H108/B117+H104*(1/C108+1/(2*B117)))+2/H103*(H105*(C107+1.5*C109)+H108*(B117+0.5*C109)+H104*(B119+C108))+H103/2)/10 -> 936.0294 | P75: Y= bp/2 [ h1 ( 1/pf,I ) + h3(1/s) + h0 ( 1 / pf,o + 1 / 2s ) ] + 2/g * [h1(pf,i + 1.5Pb )+ h3 ( s + 0.5Pb)+h0 (de + Pf,o)] + g/2
A76: de-End-plate extension beyond the | E76: the beam tension flange
A77: exterior bolt centerline =pext-pf,o | E77: Ft-Tensile strength of bolts
A78: tf-Beam Flange Thickness | E78: Ab-Nominal Bolt area
A79: Pt-Bolt material Ultimate tensile load | E79: Mnp-Connection strength for the limit state of
A80: capacity ,proof load = Ab x Ft | E80: bolt fracture with no prying action
A81: W'-bp/2-(db+1/16) | E81: ai-Distance from the interior bolt centerline to the
A82: Fi'-Flange force per bolt at the thin plate | E82: prying force = 3.682 (tp / db)^3 - 0.085
A83: limit when calculating Qmax,I for end | E83: ao-Distance from the exterior bolt centerline to the
A84: plate configurations | E84: prying force = Min of (3.682 (tp / db)^3 - 0.085 , Pext-Pf,o )
A85: = [tp2*Fpy*(0.85bp/2+0.8w') + πdb3 Ft/8]/(4Pf,i) | E85: d(0,1,2)-Distance from the Compression flange centerline to the
A86: Qmax,i-Maximum Possible Prying force | E86: centerline of "n" bolt
A87: for interior bolts | E87: Qmax,o-Maximum Possible Prying force for
A88: Mq-Connection strength for the limit | E88: exterior bolts
A89: state of bolt fracture with prying action. | E89: Tb-Specified pretension load in high strength bolts
A90: Lc-Clear distance in direction of force between | E90: Table J3.1,AISC(2000) or if if snugg tight,recommended
A91: the edge of the hole and the edge of the | E91: percentage of Table J3.1 based on bolt diameter
A92: adjacent hole. | E92: Lp-Spacing between bolt rows centerlines in compn zone
A93: bf-Width of the flange beam | E93: tw-Thickness OF the beam web
A94: Iwxx-Welds moment of inertia about the | E94: Mnw-Connection Strength Based on Welding to the end plate
A95: major axis of the beam
A96: A)DESIGN INPUT | C96: =IF(AND(C97="Extended.End.Plate",OR(C98="F.2",C98="F.4")),"Select the appropriate Bolts & Stiffeners Arrangement.",IF(AND(C97="Flush.End.Plate",OR(C98="E.4",C98="E.6",C98="E.8")),"Select the appropriate Bolts & Stiffeners Arrangement.","")) ->  | M96: Full Tightening | O96: Full Tightening | Q96: Full Tightening | S96: Full Tightening
A97: Type of Connection | C97: Extended.End.Plate | G97: Type of Bolt | H97: A325N | M97: Snug Tightening | O97: Snug Tightening
A98: Bolts Arrangement | C98: E.4 | F98: Type OF Tightening | H98: Snug Tightening
A99: Stiff. Arrangement | C99: Unstiffened | G99: tf = | H99: 10 | I99: MM | O99: Fillet Weld
A100: Tension flange weld | C100: Fillet Weld | G100: bf = | H100: 200 | I100: MM | O100: Full Penetration
B101: FExx = | C101: 4.09 | E101: t/cm2 | G101: tw = | H101: 13 | I101: MM | O101: =H100-H101-3*H99 -> 157 | P101: =C104/2+H113/2 -> 309
B102: tp = | C102: 10 | D102: MM | G102: db = | H102: 19.05 | I102: MM | M102: =H107 -> 600 | O102: bw | P102: =C104/2-H99-H113/2 -> 281 | Q102: =C104-5*H99 -> 550
B103: bp = | C103: 203 | D103: MM | G103: g = | H103: 76.2 | I103: MM | P103: hw | Q103: dw
B104: h = | C104: 600 | D104: MM | G104: h0 = | H104: 673 | I104: MM
B105: Fyp = | C105: 3.52 | D105: t/cm2 | G105: h1 = | H105: 565 | I105: MM | K105: =3*(E121*2.2/(H119*C102/(10*2.54^2)))^2 -> 145.6012217
B106: Fup = | C106: 5 | D106: t/cm2
B107: Pf or Pf,i = | C107: 44.45 | D107: MM | G107: h2 = | H107: 600 | I107: MM | K107: =H119*(C102/10)^2/(4*B120)/2.54 -> 0.6964842568 | L107: flush | P107: extended
B108: Pf,o = | C108: 63.5 | D108: MM | G108: h3 = | H108: 500 | I108: MM | L108: 33 | M108: 48 | P108: 25 | Q108: =IF(C98="E.6",127,IF(C98="E.8",127,64)) -> 64 | U108: 16
B109: Pb = | C109: 65 | D109: MM | G109: Ps,o = | H109: 34.93 | I109: MM | L109: 48 | M109: 76 | P109: 64 | Q109: 130 | U109: 20
B110: Ps,i = | C110: 31.75 | D110: MM | G110: Ps = | H110: 20 | I110: MM | L110: 57 | M110: 95 | P110: 70 | Q110: 178 | U110: 22
B111: Pext = | C111: 127 | D111: MM | G111: Mu = | H111: 2018 | I111: ton.cm | L111: =IF(C98="F.2",203,406) -> 406 | M111: 610 | P111: 400 | Q111: =IF(C98="E.6",1575,IF(C98="E.8",1575,610)) -> 610 | U111: 24
A112: No.Of bolt rows in Compn = | C112: 2 | G112: Tu = | H112: 0 | I112: ton | L112: 127 | M112: 152 | P112: 152 | Q112: 260 | U112: 27
A113: No.Of bolt cols in Compn = | C113: 2 | G113: Sf = | H113: 18 | I113: MM
B114: Lp = | C114: 60 | D114: MM | G114: Sw = | H114: 4 | I114: MM
A115: B)DESIGN PARAMATERS | L115: 5 | M115: 10 | P115: 9.5 | Q115: 26 | U115: 30
A116: ɣr = | B116: =IF(C97=M56,1.25,1) -> 1 | D116: d0 = | E116: =IF(C97="Flush.End.Plate",0,IF((H104-H99/2)<0,0,H104-H99/2)) -> 668 | F116: MM | G116: Ft = | H116: =IF(OR(H97="A325N",H97="A325X")=TRUE,6.33,7.95) -> 6.33 | I116: t/cm2 | U116: 36
A117: s = | B117: =IF(AND(C98="F.4",C99="Stiffened inside the bolt tension rows"),IF(H110>=0.5*SQRT(C103*H103),0.5*SQRT(C103*H103),H110),0.5*SQRT(C103*H103)) -> 62.18641331 | C117: MM | D117: d1 = | E117: =IF((H105-H99/2)<0,0,H105-H99/2) -> 560 | F117: MM | G117: Ab = | H117: =PI()*(H102/10)^2/4 -> 2.85022957 | I117: CM2 | M117: ao | N117: =(3.682*(C102/H102)^3-0.085)*2.54 -> 1.13689678 | Q117: extended | R117: flush
A118: pf,i = | B118: =IF(C107>B117,B117,C107) -> 44.45 | C118: MM | D118: d2 = | E118: =IF(OR((H107-H99/2)<0,C98="E.4",C98="f.2"),0,H107-H99/2) -> 0 | F118: MM | G118: Y = | H118: =IF(AND(C97="flush.end.plate",C98="F.2",C99="Unstiffened")=TRUE,O65,IF(AND(C97="flush.end.plate",C98="F.4",C99="Unstiffened"),O66,IF(AND(C97="flush.end.plate",C98="F.4",C99="Stiffened Between the bolt tension rows")=TRUE,O67,IF(AND(C97="flush.end.plate",C98="F.4",C99="Stiffened inside the bolt tension rows")=TRUE,O68,IF(AND(C97="Extended.end.plate",C98="E.4",C99="Unstiffened")=TRUE,O69,IF(AND(C97="Extended.end.plate",C98="E.4",C99="stiffened",B117<B119)=TRUE,O70,IF(AND(C97="Extended.end.plate",C98="E.4",C99="stiffened",B117>=B119)=TRUE,O71,IF(AND(C97="Extended.end.plate",C98="E.6",C99="Unstiffened")=TRUE,O72,IF(AND(C97="Extended.end.plate",C98="E.8",C99="Unstiffened")=TRUE,O73,IF(AND(C97="Extended.end.plate",C98="E.8",C99="stiffened",B117<B119)=TRUE,O74,IF(AND(C97="Extended.end.plate",C98="E.8",C99="stiffened",B117>=B119)=TRUE,O75))))))))))) -> 481.8688242 | I118: CM | M118: ao | N118: =C111-C108 -> 63.5 | Q118: =2*(E120-H121)*E116/10+2*(E120-H120)*(E117+E119)/10+2*E122*E118/10 -> 2933.227867 | R118: =2*(E120-H120)*(E117+E118)/10 -> 1343.380312 | U118: SHEAR STRENGTH
A119: de = | B119: =IF(C97="Flush.End.Plate","Not Required",C111-C108) -> 63.5 | C119: MM | D119: d3 = | E119: =IF(OR((H108-H99/2)<0,C98="F.2",C98="F.4",C98="E.4",C98="E.6"),0,H108-H99/2) -> 0 | F119: MM | G119: w' = | H119: =(C103/2-(H102+2))/10 -> 8.045 | I119: CM | Q119: =2*(E120-H121)*E116/10+2*E122*(E117+E118+E119)/10 -> 2297.09212 | R119: =2*E122*(E117+E118)/10 -> 707.2445646 | U119: 3.376 | V119: A325N
A120: ai = | B120: =(3.682*(C102/H102)^3-0.085)*2.54 -> 1.13689678 | C120: CM | D120: Pt = | E120: =H116*H117 -> 18.04195318 | F120: ton | G120: Qmax,i = | H120: =IF(H119/2.54*(C102/25.4)^2/(4*B120/2.54)*SQRT((C105*14.22)^2-3*(E121*2.2/(H119*C102/(10*2.54^2)))^2)*0.454<=0,"End Plate Is not Adequate",H119/2.54*(C102/25.4)^2/(4*B120/2.54)*SQRT((C105*14.22)^2-3*(E121*2.2/(H119*C102/(10*2.54^2)))^2)*0.454) -> 6.047486109 | I120: ton | Q120: =2*(E120-H120)*(E117+E119)/10+2*E122*(E116+E118)/10 -> 2187.022042 | U120: 4.22 | V120: A325X
A121: ao = | B121: =IF(C97="Flush.End.Plate","Not required",MIN(N117:N118)) -> 1.13689678 | C121: CM | D121: Fi' = | E121: =((C102/10)^2*C105*(0.85*C103/20+0.8*H119)+PI()*(H102/10)^3*H116/8)/(4*B118/10) -> 3.948733431 | F121: ton | G121: Qmax,o = | H121: =IF(C97="Flush.End.Plate","Not Required",IF(Q124<0,"End Plate Is not adequate",Q124)) -> 6.141896623 | I121: ton | Q121: =2*E122*(E116+E117+E118+E119)/10 -> 1550.886295 | U121: 4.22 | V121: A490N
A122: Fo' = | B122: =IF(C97="Flush.End.Plate","Not Required",E121*B118/C108) -> 2.764113402 | C122: ton | D122: Tb = | E122: =IF(H98="Full Tightening",E120*0.7,IF(H102<=16,E120*0.75*0.7,IF(H102=19.05,E120*0.5*0.7,IF(H102=22,E120*0.375*0.7,E120*0.25*0.7)))) -> 6.314683612 | F122: ton | G122: Mu = | H122: =H112/2*(C104-H99)/10+H111 -> 2018 | I122: ton.cm | U122: 5.275 | V122: A490X
A123: Iwxx = | B123: =(H100*H113^3/12*2+2*H100*H113*P101^2+2*O101*H113^3/12+2*O101*H113*P102^2+2*H114*Q102^3/12)/10000 -> 124501.4443 | C123: cm4 | D123: Lc = | E123: =C114-(H102+2) -> 38.95 | F123: MM | G123: Fnv = | H123: =IF(H97="A325N",U119,IF(H97="A325X",U120,IF(H97="A490N",U121,U122))) -> 3.376 | I123: t/cm2
A124: Connection Behaviour | D124: =IF(B142<0.9,"Thick Plate Behaviour (No prying Action)","Thin Plate Behaviour(W/Prying action)") -> Thin Plate Behaviour(W/Prying action) | N124: =IF(B142<0.9,"Thick","Thin") -> Thin | Q124: =H119/2.54*(C102/25.4)^2/(4*B121/2.54)*SQRT((C105*14.22)^2-3*(B122*2.2/(H119/2.54*C102/25.4))^2)*0.454 -> 6.141896623
A125: C)LIMITS OF APPLICABILITY
A126: 1) | B126: =IF(C97="Flush.End.Plate",L108,P108) -> 25 | C126: ≥ Pf ≥ | D126: =IF(C97="Flush.End.Plate",M108,Q108) -> 64 | E126: =IF(AND(C107>=B126,C107<=D126)= TRUE,"OK","Values is not within the limits of Applicability") -> OK | O126: =IF(AND(J103="flush.end.plate",J104="F.2",J105="Unstiffened")=TRUE,V69,IF(AND(J103="flush.end.plate",J104="F.4",J105="Unstiffened"),V70,IF(AND(J103="flush.end.plate",J104="F.4",J105="Stiffened Between the bolt tension rows")=TRUE,V71))) -> FALSE
A127: 2) | B127: =IF(C97="Flush.End.Plate",L109,P109) -> 64 | C127: ≥ Pb ≥ | D127: =IF(C97="Flush.End.Plate",M109,Q109) -> 130 | E127: =IF(OR(AND(C109>=B127,C109<=D127)= TRUE,C98="F.2")=TRUE,"OK","Values is not within the limits of Applicability") -> OK
A128: 3) | B128: =IF(C97="Flush.End.Plate",L110,P110) -> 70 | C128: ≥ g ≥ | D128: =IF(C97="Flush.End.Plate",M110,Q110) -> 178 | E128: =IF(AND(H103>=B128,H103<=D128)= TRUE,"OK","Values is not within the limits of Applicability") -> OK
A129: 4) | B129: =IF(C97="Flush.End.Plate",L111,P111) -> 400 | C129: ≥ h ≥ | D129: =IF(C97="Flush.End.Plate",M111,Q111) -> 610 | E129: =IF(AND(C104>=B129,C104<=D129)= TRUE,"OK","Values is not within the limits of Applicability") -> OK
A130: 5) | B130: =IF(C97="Flush.End.Plate",L112,P112) -> 152 | C130: ≥ bp ≥ | D130: =IF(C97="Flush.End.Plate",M112,Q112) -> 260 | E130: =IF(AND(C103>=B130,C103<=D130)= TRUE,"OK","Values is not within the limits of Applicability") -> OK
A131: 6) | B131: =IF(C97="Flush.End.Plate",L115,P115) -> 9.5 | C131: ≥ tf ≥ | D131: =IF(C97="Flush.End.Plate",M115,Q115) -> 26 | E131: =IF(AND(H99>=B131,H99<=D131)= TRUE,"OK","Values is not within the limits of Applicability") -> OK
A133: D)Calculation of Connection Strength
A135: i)Limit state of End-Plate Yielding(Mpl)
A136: ɸb = | B136: 0.9
A137: Mpl = | B137: Fpy * tp2 * Y = | D137: =C105*(C102/10)^2*H118 -> 1696.178261 | E137: t.cm
A138: ɸbMpl/ɣr = | C138: =B136*D137/B116 -> 1526.560435 | D138: t.cm
A139: ii) Limit state of Bolt Rupture(Mnp) without prying action.
A140: ɸ = | B140: 0.75
A141: Mnp = | B141: [ 2 Pt (Σdn) ] = | D141: =IF(C97="Flush.End.Plate",2*E120*(E117+E118+E119)/10,2*E120*(E116+E117+E118+E119)/10) -> 4431.1037 | E141: t.cm
A142: Mnp/ Mpl = | B142: =D141/D137 -> 2.612404487
A143: ɸMnp = | C143: =B140*D141 -> 3323.327775 | D143: t.cm
A144: iii) Limit state of Bolt Rupture(Mq) w/prying action
A146: a)Case of Extended End Plate Connection | G146: b)Case of Flush End Plate Connection
A147: ɸ = | B147: 0.75 | G147: ɸ = | H147: 0.75
A148: Mq = | G148: Mq =
B149: [2*(Pt-Qmax,o)d0 + 2(Pt-Qmax,i) (d1 + d3) + 2Tb*d2 ] | H149: [ 2(pt-Qmax)(d1+d2) ]
B150: [2*(Pt-Qmax,o)d0 + 2Tb (d1+d2+d3) ] | H150: [ 2Tb(d1+d2) ]
B151: [2*(Pt-Qmax,o)*(d1+d3) + 2Tb (d0+d2) ] | G151: Max
B152: [2Tb (d0+d1+d2+d3) ]
A153: Max
A155: ɸMq = | C155: =IF(N124="thick","Not Required",IF(C97="Flush.End.Plate",MAX(R118:R119)*B147,MAX(Q118:Q121)*B147)) -> 2199.920901 | D155: t.cm | E155: =IF(B142<0.9,"Thick Plate Behaviour (No prying Action)","Thin Plate Behaviour(W/Prying action)") -> Thin Plate Behaviour(W/Prying action)
A157: iv) Limit state based on shear strength of bolts
A158: ɸ = | B158: 0.75
A159: ɸRn = | B159: ɸ * Fnv * Ab | C159: = | D159: =B158*H123*H117*C112*C113 -> 28.86712508 | E159: ton
A160: (AISC 360-05 J3-1)
A161: iiv) Limit state based on Bearing strength at bolt holes
A162: ɸ = | B162: 0.75
A163: ɸRn = | B163: ɸ*1.2*Lc*t*Fup*n ≤ ɸ*2.4*d*t*Fup*n | F163: (AISC 360-05 J3-6a)
A164: ɸ*1.2*Lc*t*Fu*n = | C164: =IF(C112>1,B162*1.2*E123/10*C102/10*C106*C112*C113,"Not Required") -> 70.11 | D164: ton
A165: ɸ*2.4*d*t*Fup*n = | C165: =IF(C112>1,B162*2.4*H102/10*C102/10*C106*C112*C113,"Not Required") -> 68.58 | D165: ton
C167: ɸRn = | D167: =MIN(C164:C165) -> 68.58 | E167: ton
A168: iv) Limit state based on welding to end plate
A169: ɸ = | B169: 0.75
A170: ɸFw = | B170: ɸ * 0.6 * FExx | C170: = | D170: =B169*0.6*C101 -> 1.8405 | E170: t/cm2
A171: ɸMnw = | B171: ɸFw * Iwxx / yw
A172: ɸMnw = | B172: =D170*B123/(P101/10) -> 7415.692821 | C172: t.cm
C175: Connection Strength
C176: Mu(t.cm) | E176: Qu(ton) | G176: Mnw(t.cm)
C177: =IF(C155="Not Required",MIN(C138,C143),MIN(C138,C143,C155)) -> 1526.560435 | E177: =MIN(D159,D167) -> 28.86712508 | G177: =B172 -> 7415.692821

Sheet References

Sheet Sheet3
